fUST/lending_fUST_20250128
["ID","MTS","AMOUNT","RATE_DAILY","PERIOD"]
[350646511,1738021843659,-151.0,0.00016438,2]
[350646512,1738021843669,-500.0,0.00016438,2]
[350646513,1738021843679,-500.0,0.00016438,2]
[350646514,1738021843691,-500.0,0.00016438,2]
[350646515,1738021843700,-500.0,0.00016438,2]
[350646516,1738021843709,-500.0,0.00016438,2]
[350646517,1738021843718,-500.0,0.00016438,2]
[350646518,1738021843727,-500.0,0.00016438,2]
[350646519,1738021843738,-500.0,0.00016438,2]
[350646520,1738021843747,-509.74842933,0.00016438,2]
[350646521,1738021843756,-500.0,0.00016438,2]
[350646522,1738021843766,-500.0,0.00016438,2]
[350646523,1738021843775,-421.52623956,0.00016438,2]
[350646524,1738021843784,-500.0,0.00016438,2]
[350646525,1738021843793,-500.0,0.00016438,2]
[350646526,1738021843803,-500.0,0.00016438,2]
[350646527,1738021843812,-500.0,0.00016438,2]
[350646529,1738021843821,-593.49373038,0.00016438,2]
[350646531,1738021843830,-580.86815225,0.00016438,2]
[350646532,1738021843839,-577.45045515,0.00016438,2]
[350646533,1738021843849,-500.0,0.00016438,2]
[350646534,1738021843859,-500.0,0.00016438,2]
[350646535,1738021843868,-500.0,0.00016438,2]
[350646536,1738021843877,-500.0,0.00016438,2]
[350646537,1738021843887,-500.0,0.00016438,2]
[350646538,1738021843896,-500.0,0.00016438,2]
[350646539,1738021843905,-500.0,0.00016438,2]
[350646540,1738021843915,-500.0,0.00016438,2]
[350646541,1738021843924,-619.16268951,0.00016438,2]
[350646542,1738021843933,-500.0,0.00016438,2]
[350646543,1738021843943,-500.0,0.00016438,2]
[350646544,1738021843952,-151.0,0.00016438,2]
[350646546,1738021843962,-500.0,0.00016438,2]
[350646548,1738021843971,-500.0,0.00016438,2]
[350646550,1738021843980,-500.0,0.00016438,2]
[350646552,1738021843989,-151.0,0.00016438,2]
[350646554,1738021843998,-151.0,0.00016438,2]
[350646556,1738021844007,-500.0,0.00016438,2]
[350646558,1738021844016,-151.0,0.00016438,2]
[350646560,1738021844025,-151.0,0.00016438,2]
[350646562,1738021844035,-151.0,0.00016438,2]
[350646564,1738021844044,-151.0,0.00016438,2]
[350646566,1738021844053,-221.095358,0.00016438,2]
[350646568,1738021844062,-221.095358,0.00016438,2]
[350646570,1738021844071,-500.0,0.00016438,2]
[350646572,1738021844080,-500.0,0.00016438,2]
[350646574,1738021844090,-221.095358,0.00016438,2]
[350646576,1738021844099,-221.095358,0.00016438,2]
[350646578,1738021844109,-500.0,0.00016438,2]
[350646580,1738021844117,-500.0,0.00016438,2]
[350646582,1738021844126,-500.0,0.00016438,2]
[350646584,1738021844135,-500.0,0.00016438,2]
[350646586,1738021844144,-500.0,0.00016438,2]
[350646588,1738021844154,-500.0,0.00016438,2]
[350646590,1738021844163,-151.0,0.00016438,2]
[350646592,1738021844172,-500.0,0.00016438,2]
[350646594,1738021844181,-500.0,0.00016438,2]
[350646595,1738021844190,-500.0,0.00016438,2]
[350646596,1738021844199,-500.0,0.00016438,2]
[350646598,1738021844209,-404.86658746,0.00016438,2]
[350646600,1738021844218,-500.0,0.00016438,2]
[350646602,1738021844227,-500.0,0.00016571,2]
[350646604,1738021844236,-500.0,0.00016571,2]
[350646606,1738021844246,-151.0,0.00016571,2]
[350646608,1738021844255,-152.961963,0.00016571,2]
[350646609,1738021844265,-151.0,0.00016571,2]
[350646611,1738021844274,-500.0,0.00016572,2]
[350646613,1738021844284,-500.0,0.00016572,2]
[350646615,1738021844293,-500.0,0.00016572,2]
[350646617,1738021844303,-151.0,0.00016572,2]
[350646618,1738021844313,-500.0,0.00016575,2]
[350646620,1738021844323,-500.0,0.00016575,2]
[350646622,1738021844332,-500.0,0.00016575,2]
[350646623,1738021844342,-500.0,0.00016575,2]
[350646625,1738021844351,-500.0,0.00016575,2]
[350646627,1738021844363,-500.0,0.00016575,2]
[350646628,1738021844371,-500.0,0.00016575,2]
[350646629,1738021844381,-500.0,0.00016575,2]
[350646630,1738021844390,-500.0,0.00016575,2]
[350646631,1738021844399,-500.0,0.00016575,2]
[350646632,1738021844409,-500.0,0.00016575,2]
[350646633,1738021844418,-500.0,0.00016575,2]
[350646634,1738021844427,-500.0,0.00016575,2]
[350646635,1738021844436,-500.0,0.00016575,2]
[350646636,1738021844446,-500.0,0.00016575,2]
[350646637,1738021844456,-597.35493927,0.00016575,2]
[350646638,1738021844465,-500.0,0.00016575,2]
[350646639,1738021844475,-438.43844398,0.00016575,2]
[350646641,1738021844484,-500.0,0.00016575,2]
[350646643,1738021844493,-500.0,0.00016575,2]
[350646644,1738021844502,-500.0,0.00016575,2]
[350646645,1738021844511,-500.0,0.00016575,2]
[350646646,1738021844521,-500.0,0.00016575,2]
[350646647,1738021844530,-500.0,0.00016575,2]
[350646648,1738021844539,-500.0,0.00016575,2]
[350646649,1738021844549,-151.0,0.00016575,2]
[350646650,1738021844558,-592.24235097,0.00016575,2]
[350646651,1738021844568,-500.0,0.00016575,2]
[350646652,1738021844577,-500.0,0.00016575,2]
[350646653,1738021844586,-151.0,0.00016575,2]
[350646654,1738021844595,-151.0,0.00016575,2]
[350646655,1738021844606,-236.869734,0.00016575,2]
[350646656,1738021844615,-500.0,0.00016575,2]
[350646657,1738021844625,-150.79286508,0.00016575,2]
[350646658,1738021844634,-500.0,0.00016575,2]
[350646659,1738021844643,-500.0,0.00016575,2]
[350646660,1738021844653,-524.33,0.00016575,2]
[350646661,1738021844662,-500.0,0.00016575,2]
[350646662,1738021844671,-500.0,0.00016575,2]
[350646663,1738021844680,-237.69204073,0.00016712,2]
[350646664,1738021844693,-500.0,0.00016712,2]
[350646665,1738021844703,-185.73,0.00016712,2]
[350646666,1738021844712,-313.88972952,0.00016848,2]
[350646667,1738021844722,-472.6726551,0.00016849,2]
[350646668,1738021844792,-27.3273449,0.00016849,2]
[350646669,1738021844801,-500.0,0.00016986,2]
[350646670,1738021844810,-396.13464445,0.00017123,2]
[350646671,1738021844819,-326.429332,0.00017428,2]
[350646672,1738021844828,-185.0,0.00017963,2]
[350646673,1738021844837,-155.76,0.000186,2]
[350646674,1738021844847,-150.0,0.000189,2]
[350646675,1738021844856,-153.0,0.00019361,2]
[350646676,1738021844865,-153.0,0.00019361,2]
[350646677,1738021844874,-153.0,0.00019361,2]
[350646678,1738021844884,-153.0,0.00019364,2]
[350646679,1738021844894,-153.0,0.00019368,2]
[350646680,1738021844903,-499.0,0.00020547,2]
[350646681,1738021844912,-315.9466291,0.00021207,2]
[350646682,1738021844922,-500.0,0.00021207,2]
[350646683,1738021844931,-151.0,0.00021208,2]
[350646684,1738021844941,-500.0,0.00021208,2]
[350646685,1738021844951,-500.0,0.00021208,2]
[350646686,1738021844960,-162.036047,0.00021209,2]
[350646687,1738021845052,-500.0,0.00021209,2]
[350646688,1738021845074,-3000.0,0.0002121,2]
[350646689,1738021845087,-151.0,0.0002121,2]
[350646690,1738021845096,-151.0,0.0002121,2]
[350646691,1738021845106,-151.0,0.0002121,2]
[350646692,1738021845116,-3000.0,0.0002122,2]
[350646693,1738021845125,-253.846855,0.0002122,2]
[350646694,1738021845135,-151.0,0.0002122,2]
[350646695,1738021845145,-197.007931,0.0002122,2]
[350646696,1738021845155,-197.007931,0.0002122,2]
[350646697,1738021845165,-3000.0,0.0002123,2]
[350646698,1738021845174,-151.0,0.0002123,2]
[350646699,1738021845184,-151.0,0.0002123,2]
[350646700,1738021845194,-221.095358,0.0002123,2]
[350646701,1738021845204,-221.095358,0.0002123,2]
[350646702,1738021845214,-3000.0,0.0002124,2]
[350646703,1738021845223,-151.0,0.00021249,2]
[350646704,1738021845233,-3000.0,0.0002125,2]
[350646705,1738021845243,-151.0,0.0002125,2]
[350646706,1738021845252,-3000.0,0.0002126,2]
[350646707,1738021845262,-151.0,0.0002126,2]
[350646708,1738021845272,-500.0,0.00021269,2]
[350646709,1738021845282,-3000.0,0.0002127,2]
[350646710,1738021845292,-151.0,0.0002127,2]
[350646711,1738021845301,-151.0,0.0002127,2]
[350646712,1738021845311,-3000.0,0.0002128,2]
[350646713,1738021845321,-3000.0,0.0002129,2]
[350646714,1738021845331,-3000.0,0.000213,2]
[350646715,1738021845341,-3000.0,0.0002131,2]
[350646716,1738021845350,-3000.0,0.0002132,2]
[350646717,1738021845361,-500.0,0.00021329,2]
[350646718,1738021845371,-3233.394925,0.0002133,2]
[350646719,1738021845381,-151.0,0.0002133,2]
[350646720,1738021845390,-300.0,0.000214,9]
[350646721,1738021845400,-943.12669046,0.00021597,5]
[350646722,1738021845409,-296.36,0.000216,2]
[350646723,1738021845419,-6051.0,0.000216,4]
[350646724,1738021845428,-151.0,0.000216,2]
[350646725,1738021845438,-1000.0,0.000216,7]
[350646726,1738021845448,-1053.980459,0.000216,7]
[350646727,1738021845458,-151.0,0.000216,2]
[350646728,1738021845467,-183.50663,0.000216,2]
[350646729,1738021845478,-161.561,0.0002161,2]
[350646730,1738021845488,-354.0685108,0.00021808,2]
[350646731,1738021845498,-500.0,0.00021917,2]
[350646732,1738021845507,-499.0,0.00021917,4]
[350646733,1738021845517,-151.0,0.00021918,2]
[350646734,1738021845527,-151.0,0.000222,5]
[350646735,1738021845537,-197.007931,0.00022218,7]
[350646736,1738021845547,-197.007931,0.00022218,7]
[350646737,1738021845556,-153.0,0.00022219,2]
[350646738,1738021845566,-500.0,0.00022299,2]
[350646739,1738021845576,-4623.9859397,0.000223,7]
[350646740,1738021845586,-151.0,0.000223,7]
[350646741,1738021845595,-151.0,0.000223,7]
[350646742,1738021845604,-221.095358,0.000223,7]
[350646743,1738021845614,-221.095358,0.000223,7]
[350646744,1738021845624,-238.0115379,0.00022423,2]
[350646745,1738021845634,-151.0,0.000225,8]
[350646746,1738021845643,-153.63,0.000226,31]
[350646747,1738021845653,-153.63,0.000226,31]
[350646748,1738021845662,-153.63,0.000226,31]
[350646749,1738021845672,-153.63,0.000226,31]
[350646750,1738021845681,-153.63,0.000226,31]
[350646751,1738021845694,-153.63,0.000226,31]
[350646752,1738021845703,-153.63,0.000226,31]
[350646753,1738021845712,-301.39413098,0.00022649,2]
[350646754,1738021845722,-500.0,0.00022742,8]
[350646755,1738021845732,-500.0,0.00022742,8]
[350646756,1738021845742,-500.0,0.00022745,2]
[350646757,1738021845751,-151.0,0.00022745,7]
[350646758,1738021845760,-151.0,0.00022746,7]
[350646759,1738021845771,-500.0,0.00022746,2]
[350646760,1738021845781,-500.0,0.00022746,2]
[350646761,1738021845791,-500.0,0.00022746,2]
[350646762,1738021845800,-500.0,0.00022746,2]
[350646763,1738021845810,-446.56471025,0.00022746,2]
[350646764,1738021845820,-1660.9,0.0002275,7]
[350646765,1738021845829,-267.72095,0.00022752,7]
[350646766,1738021845839,-151.0,0.00022752,7]
[350646767,1738021845848,-151.0,0.00022752,7]
[350646768,1738021845857,-151.0,0.00022752,7]
[350646769,1738021845867,-151.0,0.00022752,7]
[350646770,1738021845876,-151.0,0.00022752,7]
[350646771,1738021845886,-151.0,0.00022752,7]
[350646772,1738021845895,-197.007931,0.00022752,7]
[350646773,1738021845905,-197.007931,0.00022752,7]
[350646774,1738021845914,-197.007931,0.00022752,7]
[350646775,1738021845924,-197.007931,0.00022752,7]
[350646776,1738021845933,-197.007931,0.00022752,7]
[350646777,1738021845943,-197.007931,0.00022752,7]
[350646778,1738021845952,-197.007931,0.00022752,7]
[350646779,1738021845962,-197.007931,0.00022752,7]
[350646780,1738021845972,-197.007931,0.00022752,7]
[350646781,1738021845981,-197.007931,0.00022752,7]
[350646782,1738021845990,-197.007931,0.00022752,7]
[350646783,1738021846000,-197.007936,0.00022752,7]
[350646784,1738021846009,-151.0,0.00022752,7]
[350646785,1738021846019,-151.0,0.00022752,7]
[350646786,1738021846029,-151.0,0.00022752,7]
[350646787,1738021846038,-151.0,0.00022752,7]
[350646788,1738021846048,-151.0,0.00022752,7]
[350646789,1738021846058,-151.0,0.00022752,7]
[350646790,1738021846067,-151.0,0.00022752,7]
[350646791,1738021846076,-5658.32437001,0.00022752,5]
[350646792,1738021846086,-1883.21322013,0.00022752,5]
[350646793,1738021846095,-40107.79894112,0.00022753,61]
[350646794,1738021846110,-2180.79598431,0.00022753,61]
[350646802,1738021846877,-122798.71373098,0.00022753,61]
[350646808,1738021846929,-618.53306521,0.00022753,61]
[350646999,1738021941600,893.90263721,0.000171,14]
[350647000,1738022218672,1182.44833918,0.0001515,2]
[350647001,1738022218707,926.60216333,0.0001515,2]
[350647002,1738022263400,166.447179,0.00013699,2]
[350647003,1738022375464,209.628837,0.00013973,2]
[350647004,1738022803249,203.0,0.0001515,2]
[350647005,1738022826158,-162.6012162,0.00015446,2]
[350647006,1738022826187,-163.214666,0.00015492,2]
[350647007,1738022826210,-288.25873421,0.00015599,2]
[350647008,1738022826232,-160.62388664,0.00016338,2]
[350647009,1738022826254,-27.91932519,0.00016428,2]
[350647010,1738022835140,-857.9565823,0.00016428,2]
[350647011,1738022835162,-500.0,0.00016437,2]
[350647012,1738022835189,-500.0,0.00016437,2]
[350647013,1738022835211,-500.0,0.00016437,2]
[350647014,1738022835233,-637.50301693,0.00016437,2]
[350647015,1738022835256,-581.52740558,0.00016437,2]
[350647016,1738022835277,-501.59740139,0.00016437,2]
[350647017,1738022835298,-500.0,0.00016437,2]
[350647018,1738022835319,-500.0,0.00016437,2]
[350647019,1738022835346,-500.0,0.00016437,2]
[350647020,1738022835371,-500.0,0.00016437,2]
[350647021,1738022835396,-500.0,0.00016437,2]
[350647022,1738022835422,-500.0,0.00016437,2]
[350647023,1738022835452,-500.0,0.00016437,2]
[350647024,1738022835481,-308.24751633,0.00016437,2]
[350647025,1738022848099,-540.3224408,0.00015571,2]
[350647026,1738022854096,-1454.6388649,0.00015571,2]
[350647027,1738022854122,-186.13065253,0.00016437,2]
[350647028,1738022854148,-236.52531808,0.00016437,2]
[350647029,1738022947143,-7725.51365822,0.00015581,2]
[350647030,1738022958139,-151.08350254,0.00015581,2]
[350647060,1738023032116,-6.90327574,0.00015581,2]
[350647062,1738023032126,-160.62388663,0.00016338,2]
[350647063,1738023032136,-263.47468192,0.00016437,2]
[350647065,1738023032146,-500.0,0.00016437,2]
[350647068,1738023032156,-495.83771054,0.00016437,2]
[350647070,1738023032166,-300.0,0.00016437,2]
[350647072,1738023032175,-500.0,0.00016438,2]
[350647074,1738023032184,-191.653709,0.00016438,2]
[350647076,1738023032193,-500.0,0.00016438,2]
[350647078,1738023032202,-500.0,0.00016438,2]
[350647080,1738023032211,-395.46284299,0.00016438,2]
[350647082,1738023032221,-500.0,0.00016438,2]
[350647085,1738023032230,-500.0,0.00016438,2]
[350647088,1738023032239,-500.0,0.00016438,2]
[350647090,1738023032248,-585.79436646,0.00016438,2]
[350647093,1738023032258,-500.0,0.00016438,2]
[350647096,1738023032267,-500.0,0.00016438,2]
[350647100,1738023032277,-500.0,0.00016438,2]
[350647114,1738023032394,-500.0,0.00016438,2]
[350647116,1738023032404,-502.07614746,0.00016438,2]
[350647118,1738023032413,-500.0,0.00016438,2]
[350647120,1738023032423,-500.0,0.00016438,2]
[350647122,1738023032432,-500.0,0.00016438,2]
[350647124,1738023032442,-500.0,0.00016438,2]
[350647126,1738023032451,-171.646216,0.00016438,2]
[350647128,1738023032461,-454.0628726,0.00016438,2]
[350647130,1738023032470,-500.0,0.00016438,2]
[350647132,1738023032480,-500.0,0.00016438,2]
[350647134,1738023032489,-513.67956417,0.00016438,2]
[350647137,1738023032499,-509.16917601,0.00016438,2]
[350647139,1738023032509,-501.8111549,0.00016438,2]
[350647141,1738023032519,-500.0,0.00016438,2]
[350647143,1738023032528,-500.0,0.00016438,2]
[350647145,1738023032537,-500.0,0.00016438,2]
[350647147,1738023032547,-500.0,0.00016438,2]
[350647148,1738023032556,-500.0,0.00016438,2]
[350647150,1738023032566,-500.0,0.00016438,2]
[350647152,1738023032575,-500.0,0.00016438,2]
[350647154,1738023032585,-500.0,0.00016438,2]
[350647156,1738023032594,-500.0,0.00016438,2]
[350647158,1738023032604,-500.0,0.00016438,2]
[350647160,1738023032614,-500.0,0.00016438,2]
[350647162,1738023032623,-500.0,0.00016438,2]
[350647164,1738023032632,-500.0,0.00016438,2]
[350647166,1738023032641,-500.83996038,0.00016438,2]
[350647168,1738023032651,-500.0,0.00016438,2]
[350647170,1738023032660,-500.0,0.00016438,2]
[350647172,1738023032669,-500.0,0.00016438,2]
[350647174,1738023032678,-500.0,0.00016438,2]
[350647176,1738023032687,-500.0,0.00016438,2]
[350647178,1738023032696,-500.0,0.00016438,2]
[350647180,1738023032706,-500.0,0.00016438,2]
[350647182,1738023032715,-500.0,0.00016438,2]
[350647184,1738023032725,-500.0,0.00016438,2]
[350647186,1738023032734,-500.0,0.00016438,2]
[350647188,1738023032743,-500.0,0.00016438,2]
[350647190,1738023032752,-500.0,0.00016438,2]
[350647192,1738023032761,-500.0,0.00016438,2]
[350647194,1738023032771,-500.0,0.00016438,2]
[350647196,1738023032781,-500.0,0.00016438,2]
[350647198,1738023032790,-509.88910537,0.00016438,2]
[350647200,1738023032799,-500.0,0.00016438,2]
[350647202,1738023032809,-500.0,0.00016438,2]
[350647204,1738023032818,-519.28300444,0.00016438,2]
[350647206,1738023032827,-500.0,0.00016438,2]
[350647208,1738023032836,-500.0,0.00016438,2]
[350647211,1738023032846,-1000.0,0.00016438,2]
[350647213,1738023032855,-500.0,0.00016438,2]
[350647215,1738023032865,-500.0,0.00016438,2]
[350647217,1738023032875,-500.0,0.00016438,2]
[350647219,1738023032884,-500.0,0.00016438,2]
[350647221,1738023032893,-500.0,0.00016438,2]
[350647222,1738023032903,-515.92631001,0.00016438,2]
[350647224,1738023032912,-253.85853268,0.00016438,2]
[350647226,1738023032922,-500.0,0.00016438,2]
[350647228,1738023032931,-500.0,0.00016438,2]
[350647230,1738023032940,-500.0,0.00016438,2]
[350647232,1738023032950,-474.29351623,0.00016438,2]
[350647291,1738023038340,-25.70648377,0.00016438,2]
[350647292,1738023038350,-500.28413823,0.00016438,2]
[350647293,1738023038359,-500.0,0.00016438,2]
[350647294,1738023038369,-500.0,0.00016438,2]
[350647295,1738023038380,-500.0,0.00016438,2]
[350647296,1738023038393,-500.0,0.00016438,2]
[350647297,1738023038405,-500.0,0.00016438,2]
[350647298,1738023038418,-500.0,0.00016438,2]
[350647299,1738023038430,-500.0,0.00016438,2]
[350647300,1738023038443,-206.99806042,0.00016438,2]
[350647301,1738023038455,-500.0,0.00016438,2]
[350647302,1738023038465,-500.0,0.00016438,2]
[350647303,1738023038475,-279.22681415,0.00016438,2]
[350647304,1738023038489,-500.0,0.00016438,2]
[350647305,1738023038500,-288.44,0.00016438,2]
[350647306,1738023038513,-200.49962142,0.00016438,2]
[350647307,1738023038524,-500.0,0.00016438,2]
[350647308,1738023038536,-500.0,0.00016438,2]
[350647309,1738023038548,-500.0,0.00016438,2]
[350647310,1738023038560,-523.4699008,0.00016438,2]
[350647311,1738023038571,-500.0,0.00016438,2]
[350647312,1738023038583,-500.0,0.00016438,2]
[350647313,1738023038599,-500.0,0.00016438,2]
[350647314,1738023038610,-500.0,0.00016438,2]
[350647315,1738023038622,-500.0,0.00016438,2]
[350647316,1738023038634,-500.0,0.00016438,2]
[350647317,1738023038646,-500.0,0.00016438,2]
[350647318,1738023038657,-500.0,0.00016438,2]
[350647319,1738023038668,-500.0,0.00016438,2]
[350647320,1738023038679,-500.0,0.00016438,2]
[350647321,1738023038690,-500.0,0.00016438,2]
[350647322,1738023038701,-500.0,0.00016438,2]
[350647323,1738023038712,-500.0,0.00016438,2]
[350647324,1738023038723,-531.09373918,0.00016438,2]
[350647325,1738023038735,-44.55072046,0.00016438,2]
[350647345,1738023040047,-455.44927954,0.00016438,2]
[350647346,1738023040062,-500.0,0.00016438,2]
[350647347,1738023040072,-500.0,0.00016438,2]
[350647348,1738023040082,-500.0,0.00016438,2]
[350647349,1738023040100,-500.0,0.00016438,2]
[350647350,1738023040112,-500.0,0.00016438,2]
[350647351,1738023040123,-500.0,0.00016438,2]
[350647352,1738023040136,-500.0,0.00016438,2]
[350647353,1738023040147,-500.0,0.00016438,2]
[350647354,1738023040158,-500.0,0.00016438,2]
[350647355,1738023040169,-500.0,0.00016438,2]
[350647357,1738023040181,-601.55248308,0.00016438,2]
[350647359,1738023040192,-500.0,0.00016438,2]
[350647360,1738023040203,-500.0,0.00016438,2]
[350647362,1738023040215,-503.5998713,0.00016438,2]
[350647364,1738023040227,-200.0,0.00016438,2]
[350647365,1738023040239,-500.0,0.00016438,2]
[350647366,1738023040250,-500.0,0.00016438,2]
[350647367,1738023040261,-500.0,0.00016438,2]
[350647368,1738023040274,-500.0,0.00016438,2]
[350647369,1738023040286,-500.0,0.00016438,2]
[350647370,1738023040296,-423.14495844,0.00016438,2]
[350647371,1738023040307,-502.55999406,0.00016438,2]
[350647372,1738023040319,-500.0,0.00016438,2]
[350647373,1738023040331,-500.0,0.00016438,2]
[350647374,1738023040349,-500.0,0.00016438,2]
[350647375,1738023040359,-500.0,0.00016438,2]
[350647376,1738023040370,-500.0,0.00016438,2]
[350647377,1738023040381,-500.0,0.00016438,2]
[350647378,1738023040393,-500.0,0.00016438,2]
[350647379,1738023040404,-500.0,0.00016438,2]
[350647380,1738023040415,-500.0,0.00016438,2]
[350647381,1738023040427,-500.0,0.00016438,2]
[350647382,1738023040436,-500.0,0.00016438,2]
[350647383,1738023040447,-500.0,0.00016438,2]
[350647384,1738023040458,-500.0,0.00016438,2]
[350647385,1738023040468,-500.0,0.00016438,2]
[350647386,1738023040479,-500.0,0.00016438,2]
[350647387,1738023040491,-500.0,0.00016438,2]
[350647388,1738023040503,-500.0,0.00016438,2]
[350647389,1738023040514,-500.0,0.00016438,2]
[350647390,1738023040525,-500.0,0.00016438,2]
[350647391,1738023040536,-500.0,0.00016438,2]
[350647392,1738023040547,-500.0,0.00016438,2]
[350647393,1738023040557,-500.0,0.00016438,2]
[350647394,1738023040569,-500.0,0.00016438,2]
[350647395,1738023040580,-544.8231275,0.00016438,2]
[350647396,1738023040597,-500.0,0.00016438,2]
[350647397,1738023040608,-253.26584862,0.00016438,2]
[350647398,1738023040620,-500.0,0.00016438,2]
[350647399,1738023040630,-500.0,0.00016438,2]
[350647400,1738023040641,-500.0,0.00016438,2]
[350647401,1738023040652,-500.0,0.00016438,2]
[350647402,1738023040662,-500.0,0.00016438,2]
[350647403,1738023040672,-500.0,0.00016438,2]
[350647404,1738023040683,-500.0,0.00016438,2]
[350647405,1738023040693,-500.0,0.00016438,2]
[350647406,1738023040703,-337.76,0.00016438,2]
[350647407,1738023040714,-500.0,0.00016438,2]
[350647408,1738023040724,-500.0,0.00016438,2]
[350647409,1738023040734,-500.0,0.00016438,2]
[350647410,1738023040744,-500.0,0.00016438,2]
[350647411,1738023040754,-500.0,0.00016438,2]
[350647412,1738023040766,-500.0,0.00016438,2]
[350647413,1738023040776,-500.0,0.00016438,2]
[350647414,1738023040787,-500.0,0.00016438,2]
[350647415,1738023040798,-500.0,0.00016438,2]
[350647416,1738023040808,-500.0,0.00016438,2]
[350647417,1738023040819,-500.0,0.00016438,2]
[350647418,1738023040830,-500.0,0.00016438,2]
[350647419,1738023040847,-500.88242875,0.00016438,2]
[350647420,1738023040857,-500.0,0.00016438,2]
[350647421,1738023040867,-500.0,0.00016438,2]
[350647422,1738023040878,-500.0,0.00016438,2]
[350647423,1738023040888,-500.0,0.00016438,2]
[350647424,1738023040898,-500.0,0.00016438,2]
[350647425,1738023040908,-500.0,0.00016438,2]
[350647426,1738023040919,-500.0,0.00016438,2]
[350647427,1738023040929,-500.0,0.00016438,2]
[350647428,1738023040940,-500.0,0.00016438,2]
[350647429,1738023040950,-500.0,0.00016438,2]
[350647430,1738023040961,-500.0,0.00016438,2]
[350647431,1738023040972,-500.0,0.00016438,2]
[350647432,1738023040982,-500.0,0.00016438,2]
[350647433,1738023040993,-500.0,0.00016438,2]
[350647434,1738023041005,-500.0,0.00016438,2]
[350647435,1738023041015,-500.0,0.00016438,2]
[350647436,1738023041026,-500.0,0.00016438,2]
[350647437,1738023041037,-500.0,0.00016438,2]
[350647438,1738023041047,-500.0,0.00016438,2]
[350647439,1738023041191,-500.0,0.00016438,2]
[350647440,1738023041204,-500.0,0.00016438,2]
[350647441,1738023041214,-500.0,0.00016438,2]
[350647442,1738023041223,-500.0,0.00016438,2]
[350647443,1738023041233,-500.0,0.00016438,2]
[350647444,1738023041243,-500.0,0.00016438,2]
[350647445,1738023041252,-500.0,0.00016438,2]
[350647446,1738023041262,-500.0,0.00016438,2]
[350647447,1738023041271,-500.0,0.00016438,2]
[350647448,1738023041281,-500.0,0.00016438,2]
[350647449,1738023041290,-500.0,0.00016438,2]
[350647450,1738023041300,-500.0,0.00016438,2]
[350647451,1738023041309,-500.0,0.00016438,2]
[350647452,1738023041319,-500.0,0.00016438,2]
[350647453,1738023041329,-500.0,0.00016438,2]
[350647454,1738023041343,-500.0,0.00016438,2]
[350647455,1738023041352,-500.0,0.00016438,2]
[350647456,1738023041362,-500.0,0.00016438,2]
[350647457,1738023041371,-151.0,0.00016438,2]
[350647458,1738023041381,-500.0,0.00016438,2]
[350647459,1738023041391,-500.0,0.00016438,2]
[350647460,1738023041401,-500.0,0.00016438,2]